bitfinex-derivatives/quotes_ETHF0:USTF0_20251008
["timestamp","ask_amount","ask_price","bid_price","bid_amount"]
[1759918891262,3.68568987,4491.9,4491.7,0.40061]
[1759918891463,3.35298987,4491.9,4491.8,0.7297]
[1759918891969,3.68568987,4491.9,4491.8,0.7297]
[1759918892662,3.35298987,4491.9,4491.8,0.7297]
[1759918893070,0.21120093,4491.9,4491.8,0.7297]
[1759918893372,0.00200093,4491.9,4491.8,0.7297]
[1759918894272,0.7817,4492.9,4492.8,0.5225]
[1759918894667,3.64483433,4492.9,4492.8,0.5225]
[1759918895272,3.64702461,4492.9,4492.8,0.52464951]
[1759918895572,3.09652461,4492.9,4492.8,0.73184951]
[1759918895772,2.88732461,4492.9,4492.8,0.73184951]
[1759918896477,0.02419028,4492.9,4492.8,0.73184951]
[1759918897770,0.02419028,4492.9,4492.8,5.73184951]
[1759918898368,0.02419028,4492.9,4492.8,0.73184951]
[1759918898369,0.56609028,4492.9,4492.8,0.73184951]
[1759918898577,0.78389028,4492.9,4492.8,0.73184951]
[1759918899369,0.02419028,4492.9,4492.8,0.73184951]
[1759918905187,0.55609028,4492.9,4492.8,0.73184951]
[1759918906490,0.76549028,4492.9,4492.8,0.73184951]
[1759918906788,0.76549028,4492.9,4492.8,2.5140776]
[1759918906987,0.76549028,4492.9,4492.8,0.73184951]
[1759918910389,0.76549028,4492.9,4492.8,0.00214951]
[1759918910591,0.2796,4491.9,4491.5,1.73277119]
[1759918910790,0.7007,4491.9,4491.8,0.538]
[1759918911386,0.4211,4491.9,4491.8,0.7495]
[1759918911596,0.4211,4491.9,4491.8,0.75205238]
[1759918913395,3.56280345,4491.9,4491.8,0.75205238]
[1759918913692,3.56280345,4491.9,4491.8,0.54055238]
[1759918914692,3.28320345,4491.9,4491.8,0.75205238]
[1759918917594,3.07650345,4491.9,4491.8,0.75205238]
[1759918917896,0.02419028,4492.9,4491.8,0.75205238]
[1759918917897,0.4863,4492.0,4491.9,0.538]
[1759918918097,0.7007,4492.0,4491.9,0.538]
[1759918918397,3.6234582,4492.0,4491.9,0.538]
[1759918918798,3.6234582,4492.0,4491.9,0.326]
[1759918919595,3.6234582,4492.0,4491.9,0.538]
[1759918921801,3.6234582,4492.0,4491.9,0.326]
[1759918923097,3.6234582,4492.0,4491.9,0.538]
[1759918923402,3.1371582,4492.0,4491.9,0.7495]
[1759918923598,0.2796,4492.5,4492.2,0.40056]
[1759918923903,3.04460337,4492.3,4492.2,1.15006]
[1759918924202,0.4211,4492.3,4492.2,1.15006]
[1759918924404,2.89710801,4492.3,4492.2,1.15006]
[1759918924797,3.31820801,4492.5,4492.4,1.15004]
[1759918924993,0.4211,4492.5,4492.4,1.15004]
[1759918925199,3.31820801,4492.5,4492.4,1.15004]
[1759918925503,3.11150801,4492.5,4492.4,1.15004]
[1759918926807,3.59780801,4492.5,4492.4,0.538]
[1759918931409,0.7007,4492.2,4492.1,0.326]
[1759918931604,0.7007,4492.2,4491.9,0.326]
[1759918931805,0.61499,4492.0,4491.9,0.326]
[1759918932105,0.61499,4492.0,4491.8,0.00255238]
[1759918932106,0.494,4491.9,4491.8,0.00255238]
[1759918932312,0.7007,4491.9,4491.8,0.21455238]
[1759918932507,3.63519936,4491.9,4491.8,0.00255238]
[1759918932715,8.63519936,4491.9,4491.8,0.00255238]
[1759918933206,0.4211,4490.6,4490.5,0.3441]
[1759918933507,0.7007,4490.4,4490.3,0.17941857]
[1759918933709,0.2144,4489.9,4489.8,0.326]
[1759918933910,0.7007,4489.9,4489.8,0.326]
[1759918934212,0.4211,4489.9,4489.8,0.54004717]
[1759918935210,0.4211,4489.9,4489.8,0.75154717]
[1759918935408,0.2144,4490.1,4490.0,0.5556]
[1759918935809,3.06041341,4490.1,4490.0,0.5556]
[1759918936009,3.06041341,4490.1,4490.0,0.8816]
[1759918936310,3.54721341,4490.1,4490.0,0.6701]
[1759918936615,3.54721341,4490.1,4490.0,0.326]
[1759918937118,0.4316,4489.9,4489.8,0.33704717]
[1759918937417,3.56326427,4489.9,4489.8,0.54924717]
[1759918938212,3.28316427,4489.9,4489.8,0.54924717]
[1759918938412,0.83233,4490.5,4490.4,0.2122]
[1759918938608,0.2109,4490.6,4490.5,0.3473]
[1759918938910,3.1105726,4490.6,4490.5,1.30712]
[1759918939111,0.40068,4491.0,4490.6,0.40071]
[1759918939415,0.2109,4490.7,4490.6,0.83701]
[1759918939914,3.10848345,4490.7,4490.6,1.17201]
[1759918940215,3.10848345,4490.7,4490.6,0.7713]
[1759918941519,3.32918345,4490.7,4490.6,0.7713]
[1759918941813,0.4316,4490.1,4490.0,0.5714]
[1759918942018,0.7117,4489.9,4489.8,0.00204717]
[1759918942318,3.61518284,4489.9,4489.8,0.00204717]
[1759918942513,3.61518284,4489.9,4489.8,0.33704717]
[1759918943614,3.61518284,4489.9,4489.8,0.54924717]
[1759918943816,3.33508284,4489.9,4489.8,0.54924717]
[1759918944018,3.61518284,4489.9,4489.8,0.33704717]
[1759918944218,3.61518284,4489.9,4489.8,0.54924717]
[1759918948015,3.61518284,4489.9,4489.8,0.33704717]
[1759918948416,3.61518284,4489.9,4489.8,0.00204717]
[1759918950327,3.61518284,4489.9,4489.8,0.33704717]
[1759918950631,3.61518284,4489.9,4489.8,0.00204717]
[1759918953825,3.61518284,4489.9,4489.8,0.33704717]
[1759918954433,3.33508284,4489.9,4489.8,0.77334717]
[1759918954932,3.11438284,4489.9,4489.8,0.77334717]
[1759918955934,3.33508284,4489.9,4489.8,0.77334717]
[1759918957632,3.61518284,4489.9,4489.8,0.77334717]
[1759918959128,3.33508284,4489.9,4489.8,0.77334717]
[1759918960823,0.2796,4490.9,4489.8,0.77334717]
[1759918961035,0.40073,4490.4,4490.2,0.40075]
[1759918961328,0.7088,4490.4,4490.3,0.2202]
[1759918961833,3.66232899,4490.4,4490.3,0.5475]
[1759918962628,3.38272899,4490.4,4490.3,0.7564]
[1759918963936,2.95352899,4490.4,4490.3,0.7564]
[1759918964434,3.38272899,4490.4,4490.3,0.7564]
[1759918964633,3.38272899,4490.4,4490.3,0.5475]
[1759918964836,3.38272899,4490.4,4490.3,0.7564]
[1759918966735,3.66232899,4490.4,4490.3,0.7564]
[1759918967034,0.7013,4490.1,4490.0,0.6746]
[1759918967437,0.4217,4490.1,4490.0,0.6746]
[1759918967735,0.4217,4490.1,4490.0,0.8875]
[1759918968037,0.2103,4490.1,4490.0,0.8875]
[1759918968337,0.40072,4490.6,4490.0,0.8875]
[1759918968338,0.2103,4490.6,4490.5,0.8864]
[1759918968533,0.4007,4490.8,4490.5,0.553]
[1759918968831,0.611,4490.8,4490.7,0.7615]
[1759918969236,3.49625342,4490.8,4490.7,0.7615]
[1759918970129,3.70765342,4490.8,4490.7,0.7615]
[1759918970935,3.30695342,4490.8,4490.7,0.7615]
[1759918972529,3.09555342,4490.8,4490.7,0.7615]
[1759918972731,0.82232,4491.6,4491.5,0.6735]
[1759918972932,0.4217,4491.6,4491.5,0.8864]
[1759918973135,0.40059,4492.1,4492.0,0.3378]
[1759918973432,3.36459597,4492.1,4492.0,0.8864]
[1759918980143,2.94289597,4492.1,4492.0,0.8864]
[1759918980535,3.15319597,4492.1,4492.0,0.8864]
[1759918980732,3.15319597,4492.1,4492.0,1.28699]
[1759918980942,0.2796,4493.0,4492.4,0.40054]
[1759918981142,0.84640028,4492.9,4492.8,0.7615]
[1759918981637,4.00025591,4492.9,4492.8,0.5486]
[1759918981847,3.10874591,4492.9,4492.8,0.7615]
[1759918982839,2.89844591,4492.9,4492.8,0.7615]
[1759918983036,0.02419028,4492.9,4492.8,0.7615]
[1759918984740,0.02419028,4492.9,4492.8,5.7615]
[1759918984936,0.82211,4494.0,4493.9,0.5486]
[1759918985242,3.73942739,4494.0,4493.9,0.5486]
[1759918985643,3.73942739,4494.0,4493.9,0.7615]
[1759918985835,3.74186051,4494.0,4493.9,0.76427521]
[1759918986036,2.91975051,4494.0,4493.9,0.76427521]
[1759918986241,0.00243312,4494.0,4493.9,0.76427521]
[1759918986442,0.00243312,4494.0,4493.9,5.76427521]
[1759918986643,0.40032,4495.0,4494.7,0.7615]
[1759918986842,0.40031,4495.2,4494.8,0.3334]
[1759918987040,3.08507157,4494.9,4494.8,0.7615]
[1759918987238,0.2103,4494.9,4494.8,0.7615]
[1759918987545,3.04695533,4494.9,4494.8,0.7615]
[1759918989640,3.25835533,4494.9,4494.8,0.7615]
[1759918990142,3.53795533,4494.9,4494.8,0.5486]
[1759918990345,0.7013,4494.6,4494.5,0.1249]
[1759918990846,1.10166,4494.6,4494.5,0.6735]
[1759918991048,0.82206,4494.6,4494.5,0.6735]
[1759918991350,0.2103,4496.1,4496.0,0.8864]
[1759918991641,0.2103,4495.6,4495.5,0.6735]
[1759918991846,0.4217,4495.6,4495.5,0.8864]
[1759918992248,0.4240035,4495.6,4495.5,0.8864]
[1759918992647,3.6301212,4495.6,4495.5,0.8864]
[1759918992846,3.3505212,4495.6,4495.5,0.8864]
[1759918993345,2.9288212,4495.6,4495.5,0.8864]
[1759918993536,3.3505212,4495.6,4495.5,0.8864]
[1759918993737,3.6301212,4495.6,4495.5,0.6735]
[1759918994844,3.6301212,4495.6,4495.0,0.1249]
[1759918995049,0.82201,4495.1,4495.0,0.553]
[1759918995249,0.40035,4494.7,4494.6,0.4281]
[1759918995450,0.4217,4494.7,4494.6,0.7615]
[1759918996448,0.40034,4494.8,4494.6,0.7615]
[1759918996644,0.60792,4495.0,4494.9,0.4367]
[1759918996849,0.83472,4495.0,4494.9,0.777]
[1759918997049,3.76019354,4495.0,4494.9,0.777]
[1759918998049,4.03949354,4495.0,4494.9,0.3403]
[1759918998748,4.03949354,4495.0,4494.5,0.1249]
[1759918998749,1.11405,4494.7,4494.6,0.3403]
[1759918999149,4.03502503,4494.7,4494.6,0.5601]
[1759919000150,2.92097503,4494.7,4494.6,0.777]
[1759919000351,0.60791,4495.1,4495.0,0.5708]
[1759919000657,0.2076,4495.3,4495.2,0.777]
[1759919000853,2.94141736,4495.5,4495.3,0.74059]
[1759919001052,0.6101735,4495.6,4495.5,0.9111]
[1759919001247,1.1162735,4495.6,4495.5,0.5601]
[1759919001556,0.4344,4495.2,4495.1,0.777]
[1759919001756,0.4003,4495.3,4495.2,0.777]
[1759919002256,1.114,4495.3,4495.2,0.5601]
[1759919002553,1.114,4495.3,4495.2,0.3403]
[1759919003157,1.11401,4495.1,4495.0,0.3403]
[1759919003557,3.94181844,4495.1,4495.0,0.5601]
[1759919003747,3.66251844,4495.1,4495.0,0.9111]
[1759919004458,3.94181844,4495.1,4495.0,0.6942]
[1759919004958,3.94181844,4495.1,4495.0,0.5601]
[1759919005257,0.4344,4494.6,4494.5,0.96196]
[1759919005559,0.40031,4495.2,4495.1,0.4367]
[1759919005763,0.40031,4495.2,4495.1,0.777]
[1759919005953,3.42315919,4495.2,4495.1,1.17731]
[1759919006153,0.49346677,4495.2,4495.1,1.17731]
[1759919006354,0.40028,4495.5,4495.4,0.777]
[1759919006551,0.60788,4495.5,4495.4,0.777]
[1759919006748,3.56305978,4495.5,4495.4,0.777]
[1759919006947,3.78985978,4495.5,4495.4,0.777]
[1759919007352,4.06915978,4495.5,4495.4,0.777]
[1759919007749,0.2076,4495.1,4495.0,0.1341]
[1759919007956,0.2268,4494.7,4494.6,0.777]
[1759919008254,0.4344,4494.7,4494.6,0.777]
[1759919008455,0.4344,4494.7,4494.6,1.17736]
[1759919009057,0.4344,4494.7,4494.6,0.777]
[1759919011352,0.60795,4494.8,4494.7,0.5601]
[1759919011557,0.2076,4494.8,4494.7,0.777]
[1759919012358,0.83471,4495.1,4495.0,0.9111]
[1759919012557,0.70316349,4495.1,4495.0,0.9111]
[1759919012861,3.5637434,4495.1,4495.0,0.9111]
[1759919013665,4.0698434,4495.1,4495.0,0.3403]
[1759919015363,0.7137,4494.8,4494.7,0.3403]
[1759919015562,1.20926349,4494.8,4494.7,0.3403]
[1759919015766,4.1430111,4494.8,4494.7,0.5601]
[1759919015966,4.5433511,4494.8,4494.7,0.5601]
[1759919016361,4.5433511,4494.8,4494.5,0.1249]
[1759919016362,0.4344,4494.4,4494.3,0.3403]
[1759919016564,1.20926349,4494.4,4494.3,0.5601]
[1759919016966,0.92996349,4494.4,4494.3,1.17737]
[1759919017161,0.70316349,4494.4,4494.3,1.17737]
[1759919017563,0.7137,4495.2,4495.1,0.2198]
[1759919017769,1.61084497,4495.2,4495.1,0.5601]
[1759919017967,4.5491195,4495.2,4495.1,0.5601]
[1759919018170,4.2698195,4495.2,4495.1,0.5601]
[1759919019168,4.5491195,4495.2,4495.1,0.5601]
[1759919020364,4.2698195,4495.2,4495.1,0.777]
[1759919020963,4.5482195,4495.2,4495.1,0.777]
[1759919023565,0.40034,4494.8,4494.7,0.2213]
[1759919023763,0.40035,4494.7,4494.6,0.316]
[1759919023967,1.60409497,4494.7,4494.6,0.5373]
[1759919024164,0.82886,4494.5,4494.4,0.316]
[1759919024468,1.60410497,4494.5,4494.4,0.316]
[1759919024670,1.60410497,4494.5,4493.7,0.316]
[1759919024671,1.10731,4494.0,4493.7,0.316]
[1759919024977,4.5168937,4494.0,4493.7,0.316]
[1759919025171,4.5447937,4494.0,4493.2,0.71647]
[1759919025379,4.5447937,4494.0,4493.0,0.125]
[1759919025573,0.40051,4493.0,4492.9,0.2213]
[1759919025874,4.49047324,4493.0,4492.9,0.316]
[1759919026066,1.10743,4492.7,4492.6,0.316]
[1759919026265,0.40057,4492.2,4492.0,0.125]
[1759919026468,0.4295,4492.2,4492.1,0.5483]
[1759919026673,0.4311093,4492.2,4492.1,0.55010001]
[1759919027171,0.4311093,4492.2,4492.1,1.17388001]
[1759919027376,3.56661053,4492.2,4492.1,0.00180001]
[1759919029479,3.28691053,4492.2,4492.1,0.77330001]
[1759919030177,0.0016093,4492.2,4492.1,0.77330001]
[1759919030473,0.83,4493.0,4492.9,0.5483]
[1759919030674,0.83,4493.0,4492.9,0.7715]
[1759919030875,3.67026237,4493.0,4492.9,0.7715]
[1759919031077,3.94996237,4493.0,4492.9,0.5483]
[1759919031579,3.95210765,4493.0,4492.9,0.5483]
[1759919032777,3.67240765,4493.0,4492.9,0.7715]
[1759919033179,3.27190765,4493.0,4492.9,0.7715]
[1759919033379,3.06460765,4493.0,4492.9,0.7715]
[1759919033580,2.84240765,4493.0,4492.9,0.7715]
[1759919033879,0.00214528,4493.0,4492.9,0.7715]
[1759919034471,0.2797,4494.2,4492.9,5.5502]
[1759919034777,0.2797,4493.2,4492.6,0.72753]
[1759919035077,0.7092,4492.7,4492.1,0.00180001]
[1759919035266,1.10973,4492.7,4492.6,0.2213]
[1759919035471,1.11249537,4492.7,4492.6,0.5483]
[1759919035672,3.7214626,4492.7,4492.6,0.5483]
[1759919035983,3.7214626,4492.7,4492.6,0.7715]
[1759919036278,2.8914326,4492.7,4492.6,0.7715]
[1759919037280,2.8914326,4492.7,4492.6,5.7715]
[1759919037281,0.00276537,4492.7,4492.6,5.7715]
[1759919037483,0.82995,4493.6,4493.5,0.896]
[1759919037886,0.82995,4493.6,4493.0,0.896]
[1759919037887,0.4295,4493.1,4493.0,0.896]
[1759919038288,3.37717914,4493.1,4493.0,0.896]
[1759919038491,3.37902353,4493.1,4493.0,0.896]
[1759919038891,3.37902353,4493.1,4492.5,0.6728]
[1759919038892,0.4295,4492.6,4492.5,0.6728]
[1759919040196,3.56834289,4492.6,4492.5,0.327]
[1759919040396,3.56834289,4492.6,4492.2,0.40057]
[1759919040397,0.2797,4492.4,4492.3,0.327]
[1759919040595,0.4295,4492.4,4492.3,0.5483]
[1759919040896,0.7092,4492.2,4492.1,0.55010001]
[1759919041098,0.4295,4492.2,4492.1,0.77330001]
[1759919042889,0.83007,4492.2,4492.1,0.55010001]
[1759919043094,4.02869717,4492.2,4492.1,0.00180001]
[1759919043294,4.02869717,4492.2,4492.1,0.32880001]
[1759919044291,4.02869717,4492.2,4492.1,0.55010001]
[1759919044891,3.74899717,4492.2,4492.1,0.55010001]
[1759919047801,4.02869717,4492.2,4492.1,0.00180001]
[1759919049197,0.83016,4491.2,4491.1,0.5483]
[1759919049701,0.4295,4491.2,4491.1,0.7715]
[1759919050207,0.4295,4491.2,4491.1,0.77416388]
[1759919050503,0.2797,4492.3,4491.1,0.00266388]
[1759919050699,0.62282,4491.6,4491.5,0.896]
[1759919050901,0.83012,4491.6,4491.5,0.896]
[1759919051101,3.35260822,4491.6,4491.5,0.896]
[1759919052301,3.63230822,4491.6,4491.5,0.327]
[1759919053907,0.7092,4491.2,4491.1,0.00266388]
[1759919054400,3.55842785,4491.2,4491.1,0.00266388]
[1759919054699,0.4295,4490.2,4490.1,1.02402774]
[1759919054894,0.4295,4490.2,4490.1,1.35102774]
[1759919055604,0.2222,4490.4,4490.3,1.17224]
[1759919055903,1.00165,4491.2,4490.1,0.18087294]
[1759919055904,0.40066,4491.2,4491.1,0.4445]
[1759919056097,0.2797,4491.7,4490.5,0.1245]
[1759919056098,0.83021,4490.7,4490.6,0.7715]
[1759919056298,1.10991,4490.7,4490.6,0.327]
[1759919056495,4.05038364,4490.7,4490.6,0.5483]
[1759919056698,3.77068364,4490.7,4490.6,0.5483]
[1759919057001,3.36997364,4490.7,4490.6,0.5483]
[1759919057203,3.64947364,4490.7,4490.6,0.5483]
[1759919057499,1.10825,4490.2,4490.1,0.3323952]
[1759919057705,1.10825,4490.2,4490.1,0.0020952]
[1759919057904,1.10825,4490.2,4490.1,0.3323952]
[1759919058197,3.97323062,4490.2,4490.1,0.3323952]
[1759919058400,3.97323062,4490.2,4490.1,0.0020952]
[1759919061495,3.57248062,4490.2,4490.1,0.5444952]
[1759919061697,3.29298062,4490.2,4490.1,0.7524952]
[1759919062100,2.86498062,4490.2,4490.1,0.7524952]
[1759919062500,3.07938062,4490.2,4490.1,0.7524952]
[1759919062701,3.29298062,4490.2,4490.1,0.7524952]
[1759919063103,3.07938062,4490.2,4490.1,0.7524952]
[1759919065400,3.57248062,4490.2,4490.1,0.5444952]
[1759919065600,3.57248062,4490.2,4490.1,0.0020952]
[1759919073110,0.4931,4489.3,4489.2,0.40083]
[1759919073314,0.7075,4489.3,4489.2,0.73113]
[1759919073612,3.60264278,4489.3,4489.2,0.94323]
[1759919074108,3.60490838,4489.3,4489.2,0.54464578]
[1759919074902,3.60490838,4489.3,4489.2,0.33254578]
[1759919075612,3.60490838,4489.3,4489.2,0.54464578]
[1759919076009,3.32540838,4489.3,4489.2,0.54464578]
[1759919076713,3.60490838,4489.3,4489.2,0.33254578]
[1759919078114,3.32540838,4489.3,4489.2,0.54464578]
[1759919079712,3.11180838,4489.3,4489.2,0.75264578]
[1759919079904,3.32540838,4489.3,4489.2,0.75264578]
[1759919081414,3.60530838,4489.3,4489.2,0.75264578]
[1759919081710,3.32540838,4489.3,4489.2,0.75264578]
[1759919083108,3.32540838,4489.3,4489.2,0.54464578]
[1759919083309,3.60530838,4489.3,4489.2,0.54464578]
[1759919085509,3.32540838,4489.3,4489.2,0.77204578]
[1759919087014,0.84649,4489.7,4489.6,0.7787]
[1759919087214,1.3448629,4489.7,4489.6,0.7787]
[1759919087416,4.27960593,4489.7,4489.6,0.7787]
[1759919088219,4.28151526,4489.7,4489.6,0.7787]
[1759919088420,3.88072526,4489.7,4489.6,0.7787]
[1759919088622,3.38235236,4489.7,4489.6,0.7787]
[1759919090127,3.15595236,4489.7,4489.6,0.7787]
[1759919090416,0.22120933,4489.7,4489.6,0.7787]
[1759919091518,0.68042,4489.4,4489.3,0.95853]
[1759919091719,1.12612,4489.4,4489.3,0.95853]
[1759919092018,0.84652,4489.4,4489.3,0.95853]
[1759919092524,0.84652,4489.4,4489.3,1.17953]
[1759919092717,0.4457,4489.4,4489.3,1.17953]
[1759919093918,0.22120933,4489.7,4489.6,0.846]
[1759919094121,0.44760933,4489.7,4489.6,1.1795]
[1759919094423,3.40490015,4489.7,4489.6,1.1795]
[1759919095213,0.7253,4490.9,4490.8,0.5577]
[1759919095523,4.4953265,4490.9,4490.8,0.5577]
[1759919096015,2.92723364,4490.9,4490.8,1.17939]
[1759919096319,0.84632,4491.6,4491.5,0.6808]
[1759919096527,1.06932,4491.6,4491.5,0.6808]
[1759919096723,3.9927797,4491.6,4491.5,0.6808]
[1759919097420,4.2723797,4491.6,4491.5,0.6808]
[1759919100016,0.84635,4491.3,4491.2,0.5577]
[1759919100223,0.84635,4491.3,4490.8,0.40069]
[1759919100224,0.4457,4490.9,4490.8,0.5577]
[1759919100424,0.4423,4490.9,4490.8,0.7787]
[1759919101425,3.90615143,4490.9,4490.8,0.3335]
[1759919101628,3.62655143,4490.9,4490.8,0.5577]
[1759919101818,0.223,4490.9,4490.8,0.7787]
[1759919104623,0.9483,4490.9,4490.8,0.7787]
[1759919104825,3.78795475,4490.9,4490.8,0.5577]
[1759919105221,3.50835475,4490.9,4490.8,0.7787]
[1759919107927,3.78795475,4490.9,4490.8,0.7787]
[1759919109730,3.78795475,4490.9,4490.8,0.5577]
[1759919110330,3.50835475,4490.9,4490.8,0.7787]
[1759919112124,3.06265475,4490.9,4490.8,0.7787]
[1759919113020,0.00232958,4491.6,4491.5,0.5683]
[1759919113225,0.22532958,4491.6,4491.5,0.9018]
[1759919113417,3.1117195,4491.6,4491.5,0.9018]
[1759919113622,3.3310195,4491.6,4491.5,0.9018]
[1759919115224,3.5574195,4491.6,4491.5,0.9018]
[1759919115729,3.8370195,4491.6,4491.5,0.9018]
[1759919115919,3.5574195,4491.6,4491.5,0.9018]
[1759919117427,3.3310195,4491.6,4491.5,0.9018]
[1759919117623,3.1117195,4491.6,4491.5,0.9018]
[1759919117828,0.22532958,4491.6,4491.5,0.9018]
[1759919124433,3.59570003,4491.6,4491.5,0.9018]
[1759919124624,3.87520003,4491.6,4491.0,0.1231]
[1759919124824,0.4153,4491.1,4491.0,0.94678]
[1759919125227,0.4153,4491.1,4491.0,1.27278]
[1759919125731,0.40071,4490.6,4490.5,1.60067119]
[1759919125932,0.4153,4489.9,4489.8,0.215]
[1759919126128,0.4153,4489.9,4489.8,0.82378]
[1759919126331,0.4315,4490.0,4489.9,0.749]
[1759919127034,0.6383,4490.0,4489.9,0.749]
[1759919127334,0.223,4490.0,4489.9,0.749]
[1759919128935,0.4315,4490.0,4489.9,0.749]
[1759919130032,0.223,4490.0,4489.9,0.749]
[1759919130939,0.4315,4490.0,4489.9,0.749]
[1759919131328,0.223,4490.0,4489.9,0.749]
[1759919133332,0.2795,4491.8,4490.0,0.1256]
[1759919133536,0.2795,4492.2,4491.5,0.8746]
[1759919133726,0.44356,4492.3,4491.5,0.8746]
[1759919133933,0.40057,4492.2,4491.5,0.8746]
[1759919134133,0.043,4492.3,4491.5,0.8746]
[1759919134842,0.40057,4492.2,4491.5,0.8746]
[1759919135041,3.67428248,4491.6,4491.2,0.326]
[1759919135339,0.4153,4491.3,4491.2,0.541]
[1759919135729,3.2713229,4491.3,4491.2,0.541]
[1759919136042,3.2713229,4491.3,4491.2,0.749]
[1759919137039,0.00232958,4491.6,4491.5,1.27523]
[1759919144942,3.56977343,4491.6,4491.1,0.3405]
[1759919145139,3.56977343,4491.6,4491.4,0.40064]
[1759919145441,3.29027343,4491.6,4491.5,0.8985]
[1759919147848,2.85907343,4491.6,4491.5,0.8985]
[1759919148641,3.06857343,4491.6,4491.5,0.8985]
[1759919148844,0.00232958,4491.6,4491.5,0.8985]
[1759919151248,0.223,4492.4,4492.3,0.82886]
[1759919151544,0.223,4492.4,4492.3,1.13896]
[1759919152246,0.22497546,4492.4,4492.3,1.13896]
[1759919152540,0.65537546,4492.4,4492.3,0.7384]
[1759919153446,3.81183279,4492.4,4492.3,0.3101]
[1759919154146,3.81183279,4492.4,4492.3,0.5202]
[1759919161145,3.81183279,4492.4,4492.3,0.3101]
[1759919161348,0.83097,4492.2,4492.1,0.71068]
[1759919161650,1.11057,4492.2,4492.1,0.92078]
[1759919162144,0.71,4492.2,4492.1,0.92078]
[1759919162751,0.4304,4492.2,4492.1,1.13898]
[1759919164953,0.71,4492.2,4492.1,0.92078]
[1759919165855,3.590453,4492.2,4492.1,0.3101]
[1759919166054,3.711423,4492.2,4492.0,0.71068]
[1759919166353,2.880453,4492.2,4492.1,0.7384]
[1759919167350,3.089953,4492.2,4492.1,0.7384]
[1759919168958,3.310853,4492.2,4492.1,0.7384]
[1759919171157,3.590453,4492.2,4492.1,0.3101]
[1759919171349,3.590453,4492.2,4492.0,0.40058]
[1759919171549,1.33359,4492.1,4492.0,0.3101]
[1759919171755,0.71,4491.9,4491.8,0.7107]
[1759919172459,0.71,4491.9,4491.8,0.9208]
[1759919172954,0.71,4491.9,4491.8,0.7107]
[1759919173553,0.71,4491.9,4491.8,0.9208]
[1759919176155,3.65134996,4491.9,4491.8,0.3101]
[1759919176361,3.65134996,4491.9,4491.5,0.1282]
[1759919176362,0.424,4491.7,4491.6,0.72542]
[1759919176562,0.7036,4491.7,4491.6,0.72542]
[1759919177862,3.55976327,4491.7,4491.6,0.72542]
[1759919179162,3.96038327,4491.7,4491.1,0.3248]
[1759919179364,0.2164,4491.2,4491.1,1.16157]
[1759919185167,0.647,4491.6,4491.5,1.07373]
[1759919185559,3.55773577,4491.6,4491.5,1.07373]
[1759919185759,3.35013577,4491.6,4491.5,1.28623]
[1759919185962,3.13373577,4491.6,4491.5,1.28623]
[1759919188667,3.35013577,4491.6,4491.5,1.28623]
[1759919191969,0.223,4491.6,4491.5,1.28623]
[1759919192359,0.00197546,4492.4,4491.7,1.00152]
[1759919192558,0.42597546,4492.4,4492.3,0.5484]
[1759919192753,1.14823123,4492.4,4492.3,0.94896]
[1759919192958,3.90062432,4492.4,4492.3,1.16146]
[1759919193162,3.40136855,4492.4,4492.3,1.16146]
[1759919193460,3.60896855,4492.4,4492.3,1.16146]
[1759919193663,3.88856855,4492.4,4492.3,0.5484]
[1759919197165,3.88856855,4492.4,4492.3,0.3248]
[1759919197969,3.88856855,4492.4,4492.3,0.5484]
[1759919198270,3.18496855,4492.4,4492.3,0.7609]
[1759919198465,3.40136855,4492.4,4492.3,0.7609]
[1759919198672,3.88856855,4492.4,4492.3,0.5484]
[1759919198874,3.88856855,4492.4,4492.3,0.3248]
[1759919199674,3.88856855,4492.4,4492.0,0.1247]
[1759919199968,0.7036,4491.7,4491.6,5.77162]
[1759919200169,0.9266,4491.7,4491.6,6.09642]
[1759919200371,3.79631398,4491.7,4491.6,6.09642]
[1759919200568,0.7036,4491.2,4491.1,0.3248]
[1759919200773,0.223,4491.2,4491.1,1.16157]
[1759919203777,0.62752546,4492.4,4492.3,0.4327]
[1759919204083,3.92377151,4492.4,4492.3,0.7706]
[1759919205273,3.70947151,4492.4,4492.3,0.7706]
[1759919205478,0.07697546,4492.4,4492.3,0.7706]
[1759919205682,0.40045,4493.6,4493.1,1.17109]
[1759919205987,38.56132323,4493.2,4493.1,1.17109]
[1759919206181,37.83707384,4493.2,4493.1,1.17109]
[1759919206787,37.83908291,4493.2,4493.1,1.17297735]
[1759919207182,3.09308291,4493.2,4493.1,1.17297735]
[1759919207783,0.6575,4493.9,4493.8,0.7408]
[1759919208083,0.223,4493.9,4493.8,0.7408]
[1759919208381,0.4404,4493.9,4493.8,0.7408]
[1759919208786,0.4427769,4493.9,4493.8,0.7408]
[1759919211286,0.2253769,4493.9,4493.8,0.7408]
[1759919213188,0.4427769,4493.9,4493.8,0.7408]
[1759919213493,0.2253769,4493.9,4493.8,0.7408]
[1759919214896,3.86069631,4493.9,4493.8,0.3175]
[1759919215283,3.86069631,4493.9,4493.8,0.5232]
[1759919215492,3.14629631,4493.9,4493.8,0.7408]
[1759919215692,0.2253769,4493.9,4493.8,0.7408]
[1759919217792,0.8431969,4493.9,4493.8,0.7408]
[1759919217990,0.4427769,4493.9,4493.8,0.7408]
[1759919218988,0.6598769,4493.9,4493.8,0.7408]
[1759919219996,0.9397769,4493.9,4493.8,0.7408]
[1759919220492,0.6598769,4493.9,4493.8,0.7408]
[1759919221094,0.0023769,4493.9,4493.8,0.7408]
[1759919223187,0.2197769,4493.9,4493.8,0.7408]
[1759919223391,0.0023769,4493.9,4493.8,0.7408]
[1759919224899,0.2197769,4493.9,4493.8,0.5232]
[1759919225096,3.62748641,4493.9,4493.8,0.3175]
[1759919225497,3.62748641,4493.9,4493.8,0.5232]
[1759919226095,3.34758641,4493.9,4493.8,0.7408]
[1759919226492,3.62748641,4493.9,4493.8,0.7408]
[1759919226801,3.62748641,4493.9,4493.8,0.5232]